[Event "Titled Tuesday Blitz June 6 Late 2023"]
[White "WindWhistler11"]
[Black "benny_aizenberg"]
[WhiteElo "2572"]
[BlackElo "2725"]
[Result "1-0"]
[Round "10"]
[TimeControl "180+2"]
[Date "2023.06.07"]
[WhiteClock "0:00:06"]
[BlackClock "0:00:02"]
[Board "26"]

1. Nf3 {[%clk 0:02:55]}  c5 {[%clk 0:02:55]} 2. g3 {[%clk 0:02:55]}  Nf6 {[%clk 0:02:54]} 3. d4 {[%clk 0:02:51]}  cxd4 {[%clk 0:02:52]} 4. Nxd4 {[%clk 0:02:51]}  e5 {[%clk 0:02:52]} 5. Nb3 {[%clk 0:02:52]}  d5 {[%clk 0:02:51]} 6. Bg2 {[%clk 0:02:52]}  Be7 {[%clk 0:02:49]} 7. O-O {[%clk 0:02:50]}  O-O {[%clk 0:02:47]} 8. Nc3 {[%clk 0:02:29]}  d4 {[%clk 0:02:32]} 9. Na4 {[%clk 0:02:04]}  Qc7 {[%clk 0:02:18]} 10. c3 {[%clk 0:02:02]}  Bd7 {[%clk 0:02:13]} 11. Nd2 {[%clk 0:01:26]}  Bc6 {[%clk 0:02:11]} 12. cxd4 {[%clk 0:01:20]}  exd4 {[%clk 0:02:10]} 13. b3 {[%clk 0:01:15]}  b5 {[%clk 0:01:58]} 14. Nb2 {[%clk 0:01:14]}  Bxg2 {[%clk 0:01:55]} 15. Kxg2 {[%clk 0:01:14]}  Nd5 {[%clk 0:01:54]} 16. Nf3 {[%clk 0:01:07]}  Bf6 {[%clk 0:01:39]} 17. Bg5 {[%clk 0:00:51]}  Bxg5 {[%clk 0:01:31]} 18. Nxg5 {[%clk 0:00:52]}  Nc6 {[%clk 0:01:29]} 19. Rc1 {[%clk 0:00:49]}  h6 {[%clk 0:01:10]} 20. Nf3 {[%clk 0:00:39]}  Nc3 {[%clk 0:01:07]} 21. Qd2 {[%clk 0:00:36]}  Rad8 {[%clk 0:00:57]} 22. e3 {[%clk 0:00:30]}  Nxa2 {[%clk 0:00:51]} 23. Nxd4 {[%clk 0:00:26]}  Nxc1 {[%clk 0:00:47]} 24. Qxc1 {[%clk 0:00:24]}  Rc8 {[%clk 0:00:43]} 25. Nf5 {[%clk 0:00:09]}  Qe5 {[%clk 0:00:42]} 26. Qb1 {[%clk 0:00:08]}  Nb4 {[%clk 0:00:39]} 27. f4 {[%clk 0:00:08]}  Qe6 {[%clk 0:00:28]} 28. Rf2 {[%clk 0:00:05]}  Rfd8 {[%clk 0:00:25]} 29. g4 {[%clk 0:00:03]}  Kf8 {[%clk 0:00:22]} 30. Nd1 {[%clk 0:00:02]}  Nd3 {[%clk 0:00:19]} 31. Qa1 {[%clk 0:00:02]}  f6 {[%clk 0:00:14]} 32. Rd2 {[%clk 0:00:02]}  Qe4+ {[%clk 0:00:14]} 33. Kg3 {[%clk 0:00:02]}  Rd7 {[%clk 0:00:10]} 34. Qa3+ {[%clk 0:00:02]}  Kg8 {[%clk 0:00:08]} 35. Nf2 {[%clk 0:00:02]}  Nxf2 {[%clk 0:00:06]} 36. Rxd7 {[%clk 0:00:03]}  Nh1+ {[%clk 0:00:05]} 37. Kh3 {[%clk 0:00:02]}  Qf3+ {[%clk 0:00:04]} 38. Kh4 {[%clk 0:00:03]}  Qf2+ {[%clk 0:00:03]} 39. Kh5 {[%clk 0:00:02]}  Qxh2+ {[%clk 0:00:02]} 40. Kg6 {[%clk 0:00:03]}  Qg2 {[%clk 0:00:02]} 41. Rxg7+ {[%clk 0:00:03]}  Kh8 {[%clk 0:00:02]} 42. Rh7+ {[%clk 0:00:04]}  Kg8 {[%clk 0:00:02]} 43. Ne7+ {[%clk 0:00:05]}  Kf8 {[%clk 0:00:03]} 44. Nxc8+ {[%clk 0:00:05]}  Kg8 {[%clk 0:00:02]} 45. Qe7 {[%clk 0:00:06]}  Qxg4+ {[%clk 0:00:02]} 46. Kxf6 {[%clk 0:00:06]}  Qf5+ {[%clk 0:00:02]} 47. Kxf5 {[%clk 0:00:06]}  Ng3+ {[%clk 0:00:02]} 48. Ke5 {[%clk 0:00:06]} 1-0


[Site "https://www.chess.com"]

[Event "Titled Tuesday Blitz June 6 Late 2023"]
[White "Jovic, Stanoje"]
[Black "Bitoon, Richard"]
[WhiteFideId "905020"]
[BlackFideId "5201110"]
[WhiteElo "2236"]
[BlackElo "2374"]
[Result "0-1"]
[Round "10"]
[TimeControl "180+2"]
[Date "2023.06.07"]
[WhiteClock "0:00:02"]
[BlackClock "0:00:02"]
[Board "28"]

1. c4 {[%clk 0:03:00]}  e5 {[%clk 0:03:00]} 2. g3 {[%clk 0:03:01]}  Nf6 {[%clk 0:03:00]} 3. Bg2 {[%clk 0:03:01]}  d5 {[%clk 0:03:01]} 4. cxd5 {[%clk 0:03:00]}  Nxd5 {[%clk 0:03:02]} 5. Nf3 {[%clk 0:03:00]}  Nc6 {[%clk 0:03:02]} 6. O-O {[%clk 0:03:00]}  Nb6 {[%clk 0:03:03]} 7. Nc3 {[%clk 0:03:00]}  Be7 {[%clk 0:03:03]} 8. d4 {[%clk 0:03:01]}  O-O {[%clk 0:03:04]} 9. dxe5 {[%clk 0:03:00]}  Bg4 {[%clk 0:03:04]} 10. h3 {[%clk 0:02:50]}  Bxf3 {[%clk 0:03:02]} 11. Bxf3 {[%clk 0:02:49]}  Nxe5 {[%clk 0:03:02]} 12. Bxb7 {[%clk 0:02:49]}  Rb8 {[%clk 0:03:00]} 13. Bg2 {[%clk 0:02:48]}  Qe8 {[%clk 0:02:35]} 14. b3 {[%clk 0:02:40]}  Nc6 {[%clk 0:02:30]} 15. Bf4 {[%clk 0:02:35]}  Rd8 {[%clk 0:02:29]} 16. Qc1 {[%clk 0:02:33]}  Bd6 {[%clk 0:02:27]} 17. Rd1 {[%clk 0:02:23]}  Ne5 {[%clk 0:02:09]} 18. a4 {[%clk 0:02:14]}  a6 {[%clk 0:02:03]} 19. Ne4 {[%clk 0:02:10]}  Qe6 {[%clk 0:01:59]} 20. Nxd6 {[%clk 0:02:07]}  cxd6 {[%clk 0:01:59]} 21. Qe3 {[%clk 0:02:00]}  Nbd7 {[%clk 0:01:55]} 22. g4 {[%clk 0:01:52]}  Nf6 {[%clk 0:01:50]} 23. Qb6 {[%clk 0:01:46]}  Ng6 {[%clk 0:01:47]} 24. Rxd6 {[%clk 0:01:40]}  Rxd6 {[%clk 0:01:43]} 25. Qxd6 {[%clk 0:01:34]}  Qxe2 {[%clk 0:01:40]} 26. Be3 {[%clk 0:01:27]}  Qb2 {[%clk 0:01:26]} 27. Rc1 {[%clk 0:01:19]}  a5 {[%clk 0:01:24]} 28. Rc5 {[%clk 0:01:11]}  Nh4 {[%clk 0:00:47]} 29. Rxa5 {[%clk 0:00:45]}  Qxb3 {[%clk 0:00:34]} 30. Ra7 {[%clk 0:00:26]}  Qb1+ {[%clk 0:00:31]} 31. Kh2 {[%clk 0:00:24]}  Nxg2 {[%clk 0:00:29]} 32. Kxg2 {[%clk 0:00:25]}  Qe4+ {[%clk 0:00:27]} 33. Kh2 {[%clk 0:00:17]}  Qf3 {[%clk 0:00:20]} 34. Qf4 {[%clk 0:00:16]}  Qc6 {[%clk 0:00:15]} 35. a5 {[%clk 0:00:11]}  h6 {[%clk 0:00:10]} 36. a6 {[%clk 0:00:10]}  Nd5 {[%clk 0:00:10]} 37. Qf3 {[%clk 0:00:10]}  Qd6+ {[%clk 0:00:09]} 38. Kh1 {[%clk 0:00:07]}  Nb4 {[%clk 0:00:06]} 39. Rb7 {[%clk 0:00:06]}  Nxa6 {[%clk 0:00:03]} 40. Rb6 {[%clk 0:00:06]}  Qd3 {[%clk 0:00:04]} 41. Qf4 {[%clk 0:00:05]}  Qf1+ {[%clk 0:00:03]} 42. Kh2 {[%clk 0:00:05]}  Qd3 {[%clk 0:00:03]} 43. Rd6 {[%clk 0:00:04]}  Qb5 {[%clk 0:00:03]} 44. Bd4 {[%clk 0:00:03]}  Nc7 {[%clk 0:00:03]} 45. Rb6 {[%clk 0:00:01]}  Qd7 {[%clk 0:00:02]} 46. g5 {[%clk 0:00:02]}  Ne6 {[%clk 0:00:02]} 0-1


[Site "https://www.chess.com"]

[Event "Titled Tuesday Blitz June 6 Late 2023"]
[White "Hambleton, Aman"]
[Black "Jimenez Almeida, Luis David"]
[WhiteFideId "2606577"]
[BlackFideId "22242244"]
[WhiteElo "2511"]
[BlackElo "2245"]
[Result "1-0"]
[Round "10"]
[TimeControl "180+2"]
[Date "2023.06.07"]
[WhiteClock "0:00:02"]
[BlackClock "0:00:01"]
[Board "29"]

1. d4 {[%clk 0:03:00]}  g6 {[%clk 0:02:59]} 2. c4 {[%clk 0:03:00]}  Bg7 {[%clk 0:02:59]} 3. e4 {[%clk 0:03:00]}  c5 {[%clk 0:02:58]} 4. d5 {[%clk 0:03:00]}  b5 {[%clk 0:02:59]} 5. cxb5 {[%clk 0:03:01]}  a6 {[%clk 0:02:59]} 6. bxa6 {[%clk 0:03:02]}  d6 {[%clk 0:02:59]} 7. Nc3 {[%clk 0:03:02]}  Nf6 {[%clk 0:02:59]} 8. h3 {[%clk 0:03:02]}  O-O {[%clk 0:02:59]} 9. Nf3 {[%clk 0:03:03]}  Qa5 {[%clk 0:02:58]} 10. Bd2 {[%clk 0:02:50]}  Bxa6 {[%clk 0:02:57]} 11. Bxa6 {[%clk 0:02:49]}  Qxa6 {[%clk 0:02:58]} 12. Qe2 {[%clk 0:02:49]}  Qxe2+ {[%clk 0:02:51]} 13. Kxe2 {[%clk 0:02:50]}  Nbd7 {[%clk 0:02:51]} 14. Kd3 {[%clk 0:02:49]}  Rfb8 {[%clk 0:02:50]} 15. Kc2 {[%clk 0:02:50]}  Ra6 {[%clk 0:02:34]} 16. Rhe1 {[%clk 0:02:47]}  Ne8 {[%clk 0:02:31]} 17. Rab1 {[%clk 0:02:42]}  c4 {[%clk 0:02:07]} 18. Be3 {[%clk 0:02:34]}  Bxc3 {[%clk 0:02:01]} 19. Kxc3 {[%clk 0:02:35]}  Rxa2 {[%clk 0:02:01]} 20. Nd2 {[%clk 0:02:35]}  Ne5 {[%clk 0:01:55]} 21. Nxc4 {[%clk 0:02:07]}  Nxc4 {[%clk 0:01:54]} 22. Kxc4 {[%clk 0:02:08]}  Rbxb2 {[%clk 0:01:53]} 23. Rxb2 {[%clk 0:02:08]}  Rxb2 {[%clk 0:01:54]} 24. Ra1 {[%clk 0:02:07]}  f6 {[%clk 0:01:51]} 25. Kc3 {[%clk 0:01:57]}  Rb7 {[%clk 0:01:48]} 26. Ra8 {[%clk 0:01:57]}  Kf7 {[%clk 0:01:48]} 27. g4 {[%clk 0:01:33]}  Rc7+ {[%clk 0:01:42]} 28. Kd3 {[%clk 0:01:33]}  Rb7 {[%clk 0:01:42]} 29. f4 {[%clk 0:01:12]}  Rb1 {[%clk 0:01:34]} 30. Ra7 {[%clk 0:01:09]}  Rb3+ {[%clk 0:01:17]} 31. Ke2 {[%clk 0:00:52]}  Rb4 {[%clk 0:01:15]} 32. Kf3 {[%clk 0:00:52]}  h5 {[%clk 0:01:06]} 33. gxh5 {[%clk 0:00:14]}  gxh5 {[%clk 0:01:07]} 34. e5 {[%clk 0:00:14]}  fxe5 {[%clk 0:00:35]} 35. fxe5 {[%clk 0:00:15]}  dxe5 {[%clk 0:00:31]} 36. Bc5 {[%clk 0:00:16]}  Rb3+ {[%clk 0:00:31]} 37. Ke4 {[%clk 0:00:13]}  Rxh3 {[%clk 0:00:21]} 38. Rxe7+ {[%clk 0:00:11]}  Kf8 {[%clk 0:00:12]} 39. Rxe5+ {[%clk 0:00:06]}  Kf7 {[%clk 0:00:12]} 40. Re7+ {[%clk 0:00:05]}  Kf8 {[%clk 0:00:13]} 41. d6 {[%clk 0:00:04]}  Nxd6+ {[%clk 0:00:04]} 42. Bxd6 {[%clk 0:00:04]}  Kg8 {[%clk 0:00:05]} 43. Rc7 {[%clk 0:00:01]}  Rh1 {[%clk 0:00:05]} 44. Be5 {[%clk 0:00:01]}  h4 {[%clk 0:00:04]} 45. Kf5 {[%clk 0:00:02]}  Rf1+ {[%clk 0:00:03]} 46. Ke6 {[%clk 0:00:01]}  h3 {[%clk 0:00:03]} 47. Rg7+ {[%clk 0:00:02]}  Kf8 {[%clk 0:00:03]} 48. Rh7 {[%clk 0:00:02]}  Rg1 {[%clk 0:00:03]} 49. Rxh3 {[%clk 0:00:01]}  Rg6+ {[%clk 0:00:02]} 50. Bf6 {[%clk 0:00:01]}  Rg8 {[%clk 0:00:01]} 51. Rh7 {[%clk 0:00:02]} 1-0


[Site "https://www.chess.com"]

[Event "Titled Tuesday Blitz June 6 Late 2023"]
[White "Aldokhin, Ivan"]
[Black "Pakleza, Zbigniew"]
[WhiteFideId "24115720"]
[BlackFideId "1119290"]
[WhiteElo "2322"]
[BlackElo "2410"]
[Result "0-1"]
[Round "10"]
[TimeControl "180+2"]
[Date "2023.06.07"]
[WhiteClock "0:00:04"]
[BlackClock "0:00:14"]
[Board "30"]

1. e4 {[%clk 0:02:59]}  d6 {[%clk 0:02:59]} 2. d4 {[%clk 0:02:58]}  Nf6 {[%clk 0:03:00]} 3. Nc3 {[%clk 0:02:58]}  c6 {[%clk 0:03:01]} 4. Bg5 {[%clk 0:02:58]}  Qb6 {[%clk 0:03:01]} 5. Qd2 {[%clk 0:02:47]}  Qxb2 {[%clk 0:03:01]} 6. Rb1 {[%clk 0:02:47]}  Qa3 {[%clk 0:03:01]} 7. f4 {[%clk 0:02:43]}  e6 {[%clk 0:02:57]} 8. Nf3 {[%clk 0:02:42]}  d5 {[%clk 0:02:57]} 9. Rb3 {[%clk 0:02:25]}  Qa5 {[%clk 0:02:42]} 10. e5 {[%clk 0:02:05]}  Nfd7 {[%clk 0:02:42]} 11. f5 {[%clk 0:02:05]}  exf5 {[%clk 0:02:35]} 12. Bd3 {[%clk 0:01:41]}  Nb6 {[%clk 0:02:31]} 13. O-O {[%clk 0:01:41]}  Be6 {[%clk 0:02:26]} 14. Qf4 {[%clk 0:01:26]}  h6 {[%clk 0:02:24]} 15. Bxf5 {[%clk 0:01:26]}  N8d7 {[%clk 0:02:02]} 16. Bxe6 {[%clk 0:01:24]}  fxe6 {[%clk 0:02:03]} 17. Bh4 {[%clk 0:01:21]}  Bb4 {[%clk 0:01:44]} 18. Qg4 {[%clk 0:01:12]}  Nf8 {[%clk 0:01:25]} 19. Ne2 {[%clk 0:00:29]}  g6 {[%clk 0:00:59]} 20. Nf4 {[%clk 0:00:24]}  h5 {[%clk 0:00:32]} 21. Qh3 {[%clk 0:00:16]}  Kd7 {[%clk 0:00:28]} 22. Ng5 {[%clk 0:00:16]}  Re8 {[%clk 0:00:28]} 23. Nd3 {[%clk 0:00:07]}  Bc3 {[%clk 0:00:17]} 24. Rf7+ {[%clk 0:00:07]}  Kc8 {[%clk 0:00:16]} 25. Nc5 {[%clk 0:00:06]}  Bxd4+ {[%clk 0:00:16]} 26. Kh1 {[%clk 0:00:07]}  Qxc5 {[%clk 0:00:14]} 27. Rxf8 {[%clk 0:00:04]}  Rhxf8 {[%clk 0:00:14]} 28. Nxe6 {[%clk 0:00:04]}  Rf1# {[%clk 0:00:14]} 0-1


[Site "https://www.chess.com"]

[Event "Titled Tuesday Blitz June 6 Late 2023"]
[White "Tejedor Fuente, Enrique"]
[Black "Becerra, Juan David"]
[WhiteFideId "2299100"]
[BlackFideId "4404998"]
[WhiteElo "2496"]
[BlackElo "2304"]
[Result "0-1"]
[Round "10"]
[TimeControl "180+2"]
[Date "2023.06.07"]
[WhiteClock "0:00:13"]
[BlackClock "0:00:10"]
[Board "31"]

1. d4 {[%clk 0:02:57]}  d5 {[%clk 0:02:59]} 2. c4 {[%clk 0:02:56]}  e6 {[%clk 0:02:59]} 3. Nc3 {[%clk 0:02:53]}  c6 {[%clk 0:03:00]} 4. e3 {[%clk 0:02:48]}  Nf6 {[%clk 0:03:00]} 5. Nf3 {[%clk 0:02:45]}  Nbd7 {[%clk 0:02:59]} 6. Bd3 {[%clk 0:02:44]}  dxc4 {[%clk 0:02:52]} 7. Bxc4 {[%clk 0:02:43]}  b5 {[%clk 0:02:51]} 8. Bd3 {[%clk 0:02:43]}  Bb7 {[%clk 0:02:49]} 9. O-O {[%clk 0:02:39]}  a6 {[%clk 0:02:49]} 10. a3 {[%clk 0:02:38]}  c5 {[%clk 0:02:47]} 11. Qe2 {[%clk 0:02:27]}  Be7 {[%clk 0:02:41]} 12. Rd1 {[%clk 0:02:22]}  Qb6 {[%clk 0:02:26]} 13. b3 {[%clk 0:02:09]}  O-O {[%clk 0:02:24]} 14. Bb2 {[%clk 0:02:02]}  Rfd8 {[%clk 0:02:15]} 15. dxc5 {[%clk 0:01:52]}  Nxc5 {[%clk 0:02:11]} 16. Bc2 {[%clk 0:01:51]}  Rxd1+ {[%clk 0:02:08]} 17. Rxd1 {[%clk 0:01:51]}  Rd8 {[%clk 0:02:09]} 18. Rxd8+ {[%clk 0:01:50]}  Qxd8 {[%clk 0:02:08]} 19. h3 {[%clk 0:01:49]}  h6 {[%clk 0:02:05]} 20. b4 {[%clk 0:01:42]}  Nce4 {[%clk 0:01:54]} 21. Nxe4 {[%clk 0:01:41]}  Bxe4 {[%clk 0:01:44]} 22. Bxe4 {[%clk 0:01:40]}  Nxe4 {[%clk 0:01:45]} 23. Qc2 {[%clk 0:01:38]}  Qd5 {[%clk 0:01:35]} 24. Qc8+ {[%clk 0:01:35]}  Kh7 {[%clk 0:01:34]} 25. Qc2 {[%clk 0:01:35]}  f5 {[%clk 0:01:25]} 26. Nd4 {[%clk 0:01:27]}  Bf6 {[%clk 0:01:22]} 27. Qe2 {[%clk 0:01:18]}  Bxd4 {[%clk 0:00:59]} 28. Bxd4 {[%clk 0:01:17]}  e5 {[%clk 0:00:45]} 29. Ba7 {[%clk 0:01:02]}  Qd2 {[%clk 0:00:36]} 30. Qxd2 {[%clk 0:00:47]}  Nxd2 {[%clk 0:00:37]} 31. Bb8 {[%clk 0:00:45]}  Nc4 {[%clk 0:00:31]} 32. Kf1 {[%clk 0:00:44]}  e4 {[%clk 0:00:31]} 33. Ke2 {[%clk 0:00:44]}  Kg6 {[%clk 0:00:28]} 34. Kd1 {[%clk 0:00:42]}  Kf7 {[%clk 0:00:26]} 35. Kc2 {[%clk 0:00:42]}  Nxa3+ {[%clk 0:00:19]} 36. Kc3 {[%clk 0:00:42]}  Ke6 {[%clk 0:00:08]} 37. Kd4 {[%clk 0:00:39]}  Nc4 {[%clk 0:00:07]} 38. f3 {[%clk 0:00:25]}  exf3 {[%clk 0:00:06]} 39. gxf3 {[%clk 0:00:26]}  g5 {[%clk 0:00:06]} 40. Kc5 {[%clk 0:00:20]}  Ne5 {[%clk 0:00:03]} 41. Bxe5 {[%clk 0:00:10]}  Kxe5 {[%clk 0:00:04]} 42. Kb6 {[%clk 0:00:11]}  f4 {[%clk 0:00:04]} 43. e4 {[%clk 0:00:10]}  h5 {[%clk 0:00:05]} 44. Kxa6 {[%clk 0:00:10]}  g4 {[%clk 0:00:05]} 45. hxg4 {[%clk 0:00:10]}  hxg4 {[%clk 0:00:06]} 46. fxg4 {[%clk 0:00:09]}  f3 {[%clk 0:00:06]} 47. g5 {[%clk 0:00:09]}  f2 {[%clk 0:00:07]} 48. g6 {[%clk 0:00:10]}  f1=Q {[%clk 0:00:08]} 49. g7 {[%clk 0:00:11]}  Qf7 {[%clk 0:00:08]} 50. Kxb5 {[%clk 0:00:11]}  Qxg7 {[%clk 0:00:08]} 51. Ka6 {[%clk 0:00:11]}  Qf8 {[%clk 0:00:09]} 52. b5 {[%clk 0:00:11]}  Qb8 {[%clk 0:00:09]} 53. b6 {[%clk 0:00:12]}  Kxe4 {[%clk 0:00:09]} 54. b7 {[%clk 0:00:12]}  Kd5 {[%clk 0:00:09]} 55. Kb6 {[%clk 0:00:13]}  Kd6 {[%clk 0:00:10]} 0-1


[Site "https://www.chess.com"]

[Event "Titled Tuesday Blitz June 6 Late 2023"]
[White "Moral Garcia, Serafin"]
[Black "Wagner, Dennis"]
[WhiteFideId "2201925"]
[BlackFideId "24650684"]
[WhiteElo "2274"]
[BlackElo "2478"]
[Result "0-1"]
[Round "10"]
[TimeControl "180+2"]
[Date "2023.06.07"]
[WhiteClock "0:00:15"]
[BlackClock "0:00:08"]
[Board "32"]

1. e4 {[%clk 0:03:00]}  e5 {[%clk 0:02:59]} 2. Nf3 {[%clk 0:03:00]}  Nc6 {[%clk 0:03:00]} 3. Bb5 {[%clk 0:03:00]}  Nf6 {[%clk 0:02:58]} 4. O-O {[%clk 0:02:57]}  Nxe4 {[%clk 0:02:57]} 5. Re1 {[%clk 0:02:57]}  Nd6 {[%clk 0:02:57]} 6. Nxe5 {[%clk 0:02:57]}  Be7 {[%clk 0:02:58]} 7. Nxc6 {[%clk 0:02:55]}  dxc6 {[%clk 0:02:58]} 8. Bf1 {[%clk 0:02:55]}  O-O {[%clk 0:02:58]} 9. d4 {[%clk 0:02:55]}  Bf5 {[%clk 0:02:48]} 10. c3 {[%clk 0:02:55]}  Re8 {[%clk 0:02:46]} 11. Bf4 {[%clk 0:02:53]}  Bg5 {[%clk 0:02:34]} 12. Rxe8+ {[%clk 0:02:48]}  Nxe8 {[%clk 0:02:35]} 13. Bxg5 {[%clk 0:02:43]}  Qxg5 {[%clk 0:02:36]} 14. Nd2 {[%clk 0:02:42]}  Nd6 {[%clk 0:02:32]} 15. Nf3 {[%clk 0:02:40]}  Qh6 {[%clk 0:02:28]} 16. Qc1 {[%clk 0:02:36]}  Qxc1 {[%clk 0:02:20]} 17. Rxc1 {[%clk 0:02:35]}  f6 {[%clk 0:02:20]} 18. Re1 {[%clk 0:02:34]}  Kf7 {[%clk 0:02:18]} 19. Be2 {[%clk 0:02:25]}  g5 {[%clk 0:02:17]} 20. Kf1 {[%clk 0:02:22]}  a5 {[%clk 0:02:04]} 21. Nd2 {[%clk 0:02:20]}  Bg6 {[%clk 0:02:01]} 22. Nc4 {[%clk 0:02:12]}  a4 {[%clk 0:01:22]} 23. a3 {[%clk 0:02:09]}  h5 {[%clk 0:01:16]} 24. Rd1 {[%clk 0:01:59]}  h4 {[%clk 0:01:13]} 25. Nxd6+ {[%clk 0:01:44]}  cxd6 {[%clk 0:01:13]} 26. Bd3 {[%clk 0:01:44]}  Bxd3+ {[%clk 0:01:03]} 27. Rxd3 {[%clk 0:01:43]}  Ra6 {[%clk 0:01:02]} 28. Ke2 {[%clk 0:01:39]}  Rb6 {[%clk 0:01:03]} 29. Rd2 {[%clk 0:01:39]}  Ke6 {[%clk 0:01:03]} 30. Kd3 {[%clk 0:01:39]}  Kf5 {[%clk 0:00:58]} 31. Re2 {[%clk 0:01:37]}  d5 {[%clk 0:00:48]} 32. f3 {[%clk 0:01:33]}  Rb5 {[%clk 0:00:44]} 33. Kc2 {[%clk 0:01:30]}  Kf4 {[%clk 0:00:41]} 34. Re6 {[%clk 0:01:25]}  f5 {[%clk 0:00:41]} 35. Rf6 {[%clk 0:01:25]}  Ra5 {[%clk 0:00:33]} 36. Kd3 {[%clk 0:01:05]}  Ra8 {[%clk 0:00:33]} 37. Rf7 {[%clk 0:01:02]}  Re8 {[%clk 0:00:33]} 38. g3+ {[%clk 0:00:52]}  hxg3 {[%clk 0:00:29]} 39. hxg3+ {[%clk 0:00:53]}  Kxf3 {[%clk 0:00:29]} 40. Rxf5+ {[%clk 0:00:53]}  Kg4 {[%clk 0:00:29]} 41. Rf7 {[%clk 0:00:44]}  Kxg3 {[%clk 0:00:27]} 42. Rxb7 {[%clk 0:00:44]}  g4 {[%clk 0:00:25]} 43. Rg7 {[%clk 0:00:34]}  Kf3 {[%clk 0:00:21]} 44. Rg6 {[%clk 0:00:32]}  g3 {[%clk 0:00:17]} 45. Rxc6 {[%clk 0:00:26]}  g2 {[%clk 0:00:14]} 46. Rg6 {[%clk 0:00:26]}  Re1 {[%clk 0:00:12]} 47. c4 {[%clk 0:00:19]}  g1=Q {[%clk 0:00:07]} 48. Rxg1 {[%clk 0:00:19]}  Rxg1 {[%clk 0:00:07]} 49. cxd5 {[%clk 0:00:18]}  Rc1 {[%clk 0:00:06]} 50. d6 {[%clk 0:00:18]}  Rc6 {[%clk 0:00:06]} 51. d7 {[%clk 0:00:15]}  Rd6 {[%clk 0:00:06]} 52. Kc4 {[%clk 0:00:15]}  Rxd7 {[%clk 0:00:06]} 53. b4 {[%clk 0:00:15]}  Ke4 {[%clk 0:00:07]} 54. b5 {[%clk 0:00:15]}  Rc7+ {[%clk 0:00:07]} 55. Kb4 {[%clk 0:00:15]}  Kxd4 {[%clk 0:00:07]} 56. Kxa4 {[%clk 0:00:15]}  Kc5 {[%clk 0:00:08]} 0-1


[Site "https://www.chess.com"]

[Event "Titled Tuesday Blitz June 6 Late 2023"]
[White "Liu, Casper"]
[Black "Eugene, Floryan"]
[WhiteFideId "1454153"]
[BlackFideId "20694784"]
[WhiteElo "2221"]
[BlackElo "2369"]
[Result "1-0"]
[Round "10"]
[TimeControl "180+2"]
[Date "2023.06.07"]
[WhiteClock "0:01:48"]
[BlackClock "0:00:55"]
[Board "33"]

1. e4 {[%clk 0:02:55]}  c5 {[%clk 0:02:59]} 2. Nf3 {[%clk 0:02:55]}  Nc6 {[%clk 0:03:00]} 3. c3 {[%clk 0:02:56]}  d5 {[%clk 0:02:59]} 4. exd5 {[%clk 0:02:56]}  Qxd5 {[%clk 0:03:00]} 5. d4 {[%clk 0:02:57]}  Bg4 {[%clk 0:03:00]} 6. Be2 {[%clk 0:02:58]}  e6 {[%clk 0:02:55]} 7. h3 {[%clk 0:02:54]}  Bh5 {[%clk 0:02:52]} 8. Be3 {[%clk 0:02:54]}  cxd4 {[%clk 0:02:51]} 9. cxd4 {[%clk 0:02:55]}  Nf6 {[%clk 0:02:49]} 10. Nc3 {[%clk 0:02:55]}  Qa5 {[%clk 0:02:46]} 11. O-O {[%clk 0:02:56]}  Be7 {[%clk 0:02:41]} 12. a3 {[%clk 0:02:56]}  O-O {[%clk 0:02:40]} 13. Qb3 {[%clk 0:02:56]}  Qc7 {[%clk 0:02:31]} 14. Nb5 {[%clk 0:02:56]}  Qb8 {[%clk 0:02:30]} 15. Rfe1 {[%clk 0:02:50]}  a6 {[%clk 0:02:27]} 16. Nc3 {[%clk 0:02:50]}  Rd8 {[%clk 0:02:26]} 17. Rad1 {[%clk 0:02:50]}  b5 {[%clk 0:02:24]} 18. d5 {[%clk 0:02:31]}  Na5 {[%clk 0:02:19]} 19. Qa2 {[%clk 0:02:31]}  exd5 {[%clk 0:02:11]} 20. Nxd5 {[%clk 0:02:31]}  Nxd5 {[%clk 0:02:10]} 21. Rxd5 {[%clk 0:02:32]}  Bg6 {[%clk 0:02:00]} 22. Ne5 {[%clk 0:02:32]}  Qb7 {[%clk 0:01:43]} 23. Bf3 {[%clk 0:02:25]}  Qc7 {[%clk 0:01:13]} 24. Rc1 {[%clk 0:02:13]}  Nc4 {[%clk 0:01:11]} 25. Nxg6 {[%clk 0:02:04]}  hxg6 {[%clk 0:01:09]} 26. Rxd8+ {[%clk 0:02:03]}  Qxd8 {[%clk 0:01:08]} 27. Bxa8 {[%clk 0:02:02]}  Qxa8 {[%clk 0:01:02]} 28. b3 {[%clk 0:02:02]}  Nxa3 {[%clk 0:01:00]} 29. Bc5 {[%clk 0:01:59]}  Bxc5 {[%clk 0:00:59]} 30. Rxc5 {[%clk 0:02:00]}  b4 {[%clk 0:01:00]} 31. Qd2 {[%clk 0:01:58]}  Qe4 {[%clk 0:00:56]} 32. f3 {[%clk 0:01:47]}  Qb1+ {[%clk 0:00:56]} 33. Kh2 {[%clk 0:01:47]}  Qxb3 {[%clk 0:00:55]} 34. Qd8+ {[%clk 0:01:47]}  Kh7 {[%clk 0:00:54]} 35. Qh4+ {[%clk 0:01:47]}  Kg8 {[%clk 0:00:55]} 36. Rc8# {[%clk 0:01:48]} 1-0


[Site "https://www.chess.com"]

[Event "Titled Tuesday Blitz June 6 Late 2023"]
[White "Papp, Levente"]
[Black "Mei, Austin"]
[WhiteFideId "751243"]
[BlackFideId "30948479"]
[WhiteElo "2380"]
[BlackElo "2125"]
[Result "1-0"]
[Round "10"]
[TimeControl "180+2"]
[Date "2023.06.07"]
[WhiteClock "0:02:07"]
[BlackClock "0:01:35"]
[Board "34"]

1. Nf3 {[%clk 0:03:00]}  Nf6 {[%clk 0:02:59]} 2. g3 {[%clk 0:03:00]}  g6 {[%clk 0:02:58]} 3. Bg2 {[%clk 0:03:00]}  Bg7 {[%clk 0:02:58]} 4. b3 {[%clk 0:03:01]}  O-O {[%clk 0:02:59]} 5. Bb2 {[%clk 0:03:01]}  c5 {[%clk 0:02:59]} 6. c4 {[%clk 0:03:01]}  Nc6 {[%clk 0:03:00]} 7. O-O {[%clk 0:03:01]}  d5 {[%clk 0:03:00]} 8. cxd5 {[%clk 0:03:02]}  Nxd5 {[%clk 0:03:01]} 9. Bxg7 {[%clk 0:03:02]}  Kxg7 {[%clk 0:03:02]} 10. d4 {[%clk 0:03:01]}  cxd4 {[%clk 0:02:52]} 11. Nxd4 {[%clk 0:03:02]}  Nxd4 {[%clk 0:02:53]} 12. Qxd4+ {[%clk 0:03:03]}  Nf6 {[%clk 0:02:53]} 13. Qe5 {[%clk 0:03:02]}  Qb6 {[%clk 0:02:32]} 14. Nc3 {[%clk 0:02:59]}  Be6 {[%clk 0:02:31]} 15. Na4 {[%clk 0:02:58]}  Qb4 {[%clk 0:02:21]} 16. Nc5 {[%clk 0:02:56]}  Bf5 {[%clk 0:02:17]} 17. Qxe7 {[%clk 0:02:51]}  Qb6 {[%clk 0:02:04]} 18. Na4 {[%clk 0:02:33]}  Qa5 {[%clk 0:01:58]} 19. Qxb7 {[%clk 0:02:28]}  Rab8 {[%clk 0:01:56]} 20. Qf3 {[%clk 0:02:28]}  Bg4 {[%clk 0:01:53]} 21. Qc3 {[%clk 0:02:23]}  Qg5 {[%clk 0:01:40]} 22. e4 {[%clk 0:02:14]}  Rfc8 {[%clk 0:01:40]} 23. Qb2 {[%clk 0:02:14]}  Kg8 {[%clk 0:01:35]} 24. h4 {[%clk 0:02:07]} 1-0


[Site "https://www.chess.com"]